bitfinex/quotes_ETHUSD_20240702
["timestamp","ask_amount","ask_price","bid_price","bid_amount"]
[1719921721074,0.50117035,3455.2,3454.7,2.89457]
[1719921721301,0.50117035,3455.1,3454.7,2.89457]
[1719921721431,0.824,3455.1,3454.7,2.89457]
[1719921721774,0.50117035,3455.0,3454.6,2.89468]
[1719921722574,0.824,3455.1,3454.6,2.89468]
[1719921722747,0.50121027,3454.9,3454.6,2.89468]
[1719921722945,0.50121027,3454.8,3454.6,2.89468]
[1719921723154,0.824,3455.1,3454.6,2.89468]
[1719921723351,1.05120999,3455.0,3454.6,2.89468]
[1719921723555,0.50120999,3454.9,3454.6,2.89468]
[1719921724393,0.50120999,3454.9,3454.5,2.89476]
[1719921724574,0.50120999,3454.9,3454.7,2.89453]
[1719921725851,0.55,3455.0,3454.7,2.89453]
[1719921726085,0.50119931,3454.9,3454.7,2.89453]
[1719921726250,0.55,3455.2,3454.7,2.89453]
[1719921726450,0.50119951,3455.1,3454.7,2.89453]
[1719921726756,1.05119951,3455.0,3454.7,2.89453]
[1719921726942,0.50119951,3454.9,3454.7,2.89453]
[1719921727143,0.55,3455.0,3454.7,2.89453]
[1719921727374,0.5012023,3454.9,3454.7,2.89453]
[1719921727580,0.55,3455.2,3454.7,2.89453]
[1719921727784,1.325203,3455.1,3454.7,2.89453]
[1719921727957,1.051203,3455.0,3454.7,2.89453]
[1719921728155,0.501203,3454.9,3454.7,2.89453]
[1719921728354,0.55,3455.0,3454.6,2.89468]
[1719921728560,0.50120894,3454.9,3454.6,2.89468]
[1719921728773,0.55,3455.0,3454.6,2.89468]
[1719921728975,0.50120912,3454.9,3454.6,2.89468]
[1719921729157,0.55,3455.0,3454.6,2.89468]
[1719921729480,0.50120868,3454.9,3454.6,2.89468]
[1719921729786,0.55,3455.0,3454.6,2.89468]
[1719921729951,0.50121452,3454.9,3454.6,2.89468]
[1719921730274,0.55,3455.0,3454.6,2.89468]
[1719921730480,0.50121344,3454.9,3454.6,2.89468]
[1719921730792,0.55,3455.0,3454.6,2.89468]
[1719921731100,0.50121444,3454.9,3454.6,2.89468]
[1719921731280,0.55,3455.0,3454.6,2.89468]
[1719921731493,0.50121681,3454.9,3454.4,2.8948]
[1719921731787,0.55,3455.0,3454.5,2.89476]
[1719921731960,0.50123098,3454.9,3454.5,2.89476]
[1719921732159,0.50123098,3454.8,3454.5,2.89476]
[1719921732371,0.55,3455.0,3454.5,2.89476]
[1719921732605,0.50123097,3454.9,3454.5,2.89476]
[1719921732770,0.55,3455.0,3454.5,2.89476]
[1719921732959,0.50123118,3454.9,3454.5,2.89476]
[1719921733298,0.50123118,3454.9,3454.3,5.31329]
[1719921733299,2.89283118,3454.8,3454.3,2.89489]
[1719921733452,1.05123118,3454.7,3454.3,2.89487]
[1719921733655,0.55,3454.7,3454.4,2.89484]
[1719921734255,0.55,3454.9,3454.4,2.89484]
[1719921734456,0.50123872,3454.8,3454.4,2.89484]
[1719921734692,1.05123872,3454.7,3454.4,2.89484]
[1719921735002,0.55,3454.7,3454.4,2.89484]
[1719921735153,0.55,3454.9,3454.4,2.89484]
[1719921735358,0.50123753,3454.8,3454.3,2.89487]
[1719921735603,1.87526109,3454.7,3454.3,2.89487]
[1719921735769,0.50127644,3454.6,3454.3,2.89487]
[1719921736100,1.374,3454.5,3454.1,2.8951]
[1719921736477,0.55,3454.5,3454.1,2.8951]
[1719921736793,0.50129869,3454.4,3454.1,2.8951]
[1719921737091,0.55,3454.5,3454.1,2.8951]
[1719921737404,0.50130407,3454.4,3454.1,2.8951]
[1719921737606,0.55,3454.5,3454.1,2.8951]
[1719921738061,0.5013045,3454.4,3454.1,2.8951]
[1719921738258,0.824,3454.3,3453.9,2.89523]
[1719921738572,1.374,3454.3,3453.9,2.89523]
[1719921739856,2.4574,3454.2,3453.9,2.89523]
[1719921741977,2.4574,3454.2,3453.7,2.85957343]
[1719921742515,3.419505,3454.2,3453.7,2.85957343]
[1719921742799,0.50134219,3454.1,3453.7,2.85957343]
[1719921742971,0.50134219,3454.0,3453.7,2.85957343]
[1719921743170,0.50134219,3454.1,3453.7,2.85957343]
[1719921745306,0.50135264,3454.0,3453.7,2.85957343]
[1719921745524,3.419505,3454.2,3453.7,2.85957343]
[1719921745731,0.50135495,3454.1,3453.5,5.21564]
[1719921745930,0.824,3453.9,3453.3,5.31925]
[1719921746082,0.824,3453.9,3453.3,2.89575]
[1719921746281,0.824,3453.9,3453.5,2.8956]
[1719921746576,1.5928455,3454.1,3453.5,2.8956]
[1719921746801,2.09040554,3454.0,3453.5,2.8956]
[1719921747014,0.50138399,3453.9,3453.5,2.8956]
[1719921747326,0.50138399,3453.8,3453.6,2.8955]
[1719921747632,0.55,3454.0,3453.6,2.8955]
[1719921747788,0.50138113,3453.9,3453.6,2.8955]
[1719921748124,0.55,3454.1,3453.6,2.8955]
[1719921748332,0.5013709,3454.0,3453.6,2.8955]
[1719921748535,0.55,3454.1,3453.6,2.8955]
[1719921748687,0.50137099,3454.0,3453.6,2.8955]
[1719921748889,0.50137099,3453.9,3453.6,2.8955]
[1719921749084,0.50137099,3454.0,3453.6,2.8955]
[1719921749290,0.50137232,3453.9,3453.6,2.8955]
[1719921749618,0.55,3454.1,3453.6,2.8955]
[1719921749917,0.50137203,3454.0,3453.6,2.8955]
[1719921750115,0.50137203,3453.9,3453.6,2.9534044]
[1719921750321,0.50137203,3454.0,3453.6,2.9534044]
[1719921751290,0.50137203,3454.0,3453.6,2.8955]
[1719921751492,0.55,3454.1,3453.6,2.8955]
[1719921751493,0.50137542,3453.9,3453.6,2.8955]
[1719921751799,0.55,3454.1,3453.6,2.8955]
[1719921754810,0.50137656,3453.9,3453.6,2.8955]
[1719921755136,0.55,3454.1,3453.6,2.8955]
[1719921755334,0.50137654,3454.0,3453.6,2.8955]
[1719921755542,0.50137654,3453.9,3453.6,2.8955]
[1719921755716,0.50137654,3454.0,3453.6,2.8955]
[1719921756343,0.50137654,3454.0,3453.6,2.95340445]
[1719921757745,0.50137654,3454.0,3453.6,2.8955]
[1719921758039,0.55,3454.1,3453.6,2.8955]
[1719921758247,0.50137387,3453.9,3453.6,2.8955]
[1719921758416,0.55,3454.1,3453.7,2.89544]
[1719921758744,0.50137401,3454.0,3453.7,2.89544]
[1719921759052,0.50137401,3453.9,3453.7,2.89544]
[1719921759284,0.50137401,3454.0,3453.7,2.89544]
[1719921759435,0.50137652,3453.9,3453.7,2.89544]
[1719921759753,1.222642,3454.1,3453.7,2.89544]
[1719921760046,0.5013762,3454.0,3453.7,2.89544]
[1719921760217,0.5013762,3453.9,3453.7,2.89544]
[1719921760418,1.222642,3454.1,3453.7,2.89544]
[1719921760616,0.50137665,3454.0,3453.7,2.89544]
[1719921760849,0.50137665,3453.9,3453.7,2.89544]
[1719921761020,0.50137665,3454.0,3453.7,2.89544]
[1719921761345,0.50137813,3453.9,3453.7,2.89544]
[1719921761552,1.222642,3454.1,3453.7,2.89544]
[1719921761553,0.50137813,3453.8,3453.7,2.89544]
[1719921763206,0.50137777,3453.8,3453.7,2.89544]
[1719921764552,0.50137439,3453.8,3453.7,2.89544]
[1719921767181,0.50137451,3453.8,3453.7,2.89544]
[1719921767476,2.2956,3454.0,3453.7,2.89544]
[1719921768551,2.2956,3454.0,3453.5,5.79113]
[1719921768756,0.50137391,3453.8,3453.5,5.79113]
[1719921768941,0.50137391,3453.8,3453.6,2.8955]
[1719921769582,2.2956,3454.0,3453.7,2.89543]
[1719921773881,1.374,3454.1,3453.7,2.89543]
[1719921774392,0.50137106,3454.0,3453.7,2.89543]
[1719921774571,0.50137106,3453.9,3453.7,2.89543]
[1719921774754,0.50137106,3454.0,3453.7,2.89543]
[1719921775859,0.50137331,3453.9,3453.7,2.89543]
[1719921776064,0.50137331,3453.8,3453.7,2.89543]
[1719921776283,1.374,3454.1,3453.7,2.89543]
[1719921776488,0.50137225,3454.0,3453.7,2.89543]
[1719921776688,0.50137225,3453.9,3453.7,2.89543]
[1719921776893,0.50137225,3453.8,3453.7,2.89543]
[1719921779308,0.50137237,3453.8,3453.7,2.89543]
[1719921781700,0.50137712,3453.8,3453.7,2.89543]
[1719921785100,0.50137459,3453.8,3453.7,2.89543]
[1719921788125,0.55,3454.1,3453.7,2.89543]
[1719921788294,0.50136693,3453.8,3453.7,2.89543]
[1719921788624,0.55,3454.1,3453.7,2.89543]
[1719921788827,0.95697146,3454.0,3453.7,2.89543]
[1719921788981,0.50136715,3453.9,3453.7,2.89543]
[1719921789289,0.50136715,3453.8,3453.7,2.89543]
[1719921789496,0.50136715,3454.0,3453.7,2.89543]
[1719921789725,0.55,3454.1,3453.7,2.89543]
[1719921789726,0.50136715,3453.9,3453.7,2.89543]
[1719921789881,0.50136715,3454.0,3453.7,2.89543]
[1719921790082,0.50136715,3453.9,3453.7,2.89543]
[1719921790427,0.50136715,3453.8,3453.7,2.89543]
[1719921790933,0.50136715,3454.0,3453.7,2.89543]
[1719921791222,0.50136715,3453.9,3453.7,2.89543]
[1719921791381,0.50136801,3453.8,3453.7,2.89543]
[1719921791723,0.50136803,3453.8,3453.7,2.89543]
[1719921792291,0.50136803,3453.8,3453.5,2.89553]
[1719921792614,0.50136803,3453.7,3453.5,2.89553]
[1719921792780,4.26911,3454.1,3453.5,2.89553]
[1719921792781,1.45568303,3454.0,3453.5,2.89553]
[1719921792981,1.50704102,3453.9,3453.5,2.89553]
[1719921793182,0.50136803,3453.8,3453.5,2.89553]
[1719921794483,1.374,3453.9,3453.5,2.89553]
[1719921794685,0.50138624,3453.7,3453.5,2.89553]
[1719921794984,0.50138624,3453.6,3453.5,2.89553]
[1719921795179,0.50138624,3453.8,3453.5,2.89553]
[1719921795390,0.50138624,3453.7,3453.5,2.89553]
[1719921795616,0.50138624,3453.6,3453.5,2.89553]
[1719921797912,0.5013842,3453.6,3453.5,2.89553]
[1719921801299,0.50138386,3453.6,3453.5,2.89553]
[1719921801725,0.55,3453.9,3453.5,2.89553]
[1719921801951,0.50138386,3453.6,3453.3,2.95361803]
[1719921802237,0.50138386,3453.5,3453.4,2.89565]
[1719921802394,3.2297,3453.8,3453.4,2.89565]
[1719921802395,0.50138386,3453.7,3453.4,2.89565]
[1719921803515,0.50138386,3453.7,3453.3,5.79144]
[1719921803726,0.50138386,3453.7,3453.3,2.89571]
[1719921804236,4.2531831,3453.8,3453.3,2.89571]
[1719921804462,0.50142607,3453.6,3453.3,2.89571]
[1719921804624,0.50142607,3453.5,3453.3,2.89571]
[1719921804794,0.50142623,3453.4,3453.3,2.89571]
[1719921807680,3.2297,3453.8,3453.4,2.89568]
[1719921807835,0.50142593,3453.7,3453.4,2.89568]
[1719921808037,4.186701,3453.8,3453.4,2.89568]
[1719921808038,0.50142593,3453.6,3453.4,2.89568]
[1719921808263,0.50142593,3453.5,3453.4,2.89568]
[1719921810737,2.4057,3453.8,3453.4,2.89568]
[1719921810940,0.50141217,3453.7,3453.4,2.89568]
[1719921811238,0.50141217,3453.6,3453.4,2.89568]
[1719921811468,0.50141217,3453.7,3453.4,2.89568]
[1719921813077,0.50141217,3453.7,3453.5,2.8956]
[1719921814255,0.50140336,3453.6,3453.5,2.8956]
[1719921814679,0.50140339,3453.6,3453.5,2.8956]
[1719921817336,0.50140423,3453.6,3453.5,2.8956]
[1719921817741,0.50140372,3453.6,3453.5,2.8956]
[1719921820585,2.4057,3453.8,3453.5,2.8956]
[1719921820812,0.50140288,3453.6,3453.5,2.8956]
[1719921821303,0.50140282,3453.6,3453.5,2.8956]
[1719921824209,0.5014041,3453.7,3453.5,2.8956]
[1719921824375,0.5014041,3453.6,3453.5,2.8956]
[1719921827414,0.5014028,3453.6,3453.5,2.8956]
[1719921827705,3.073187,3453.8,3453.5,2.8956]
[1719921827918,0.5014028,3453.7,3453.5,2.8956]
[1719921828206,0.5014028,3453.6,3453.5,2.8956]
[1719921830417,3.073187,3453.8,3453.5,2.8956]
[1719921830939,1.00281244,3453.7,3453.5,2.8956]
[1719921831212,0.50140619,3453.6,3453.5,2.8956]
[1719921831419,0.50140619,3453.7,3453.5,2.8956]
[1719921832117,1.28578551,3453.7,3453.3,2.95360833]
[1719921832320,0.50140619,3453.6,3453.3,2.95360833]
[1719921832817,0.50140619,3453.5,3453.3,2.95360833]
[1719921833015,0.50140619,3453.7,3453.3,2.95360833]
[1719921833195,0.50140619,3453.7,3453.1,2.89591]
[1719921833396,0.50140619,3453.7,3453.3,2.89573]
[1719921833599,0.50140619,3453.7,3453.3,5.79144]
[1719921833600,1.50856381,3453.7,3453.3,5.79144]
[1719921833789,0.50141594,3453.6,3453.3,5.79144]
[1719921834121,0.50141594,3453.5,3453.3,2.89571]
[1719921834279,0.50141594,3453.4,3453.3,2.89571]
[1719921837225,0.50141477,3453.4,3453.3,2.89571]
[1719921840307,3.2297,3453.8,3453.3,2.89571]
[1719921840500,0.50142126,3453.7,3453.3,2.89571]
[1719921840823,4.186717,3453.8,3453.3,2.89571]
[1719921841028,0.50142089,3453.6,3453.3,2.89571]
[1719921841229,0.50142089,3453.5,3453.3,2.89571]
[1719921841406,0.50142089,3453.4,3453.3,2.89571]
[1719921842795,0.50142245,3453.4,3453.3,2.89571]
[1719921843833,0.50142259,3453.7,3453.3,2.89571]
[1719921845700,1.50858185,3453.7,3453.3,2.89571]
[1719921845931,1.00715926,3453.7,3453.3,2.89571]
[1719921846100,0.50142185,3453.6,3453.3,2.89571]
[1719921846301,1.00715926,3453.7,3453.3,2.89571]
[1719921846302,0.50142185,3453.5,3453.3,2.89571]
[1719921846497,0.50142185,3453.6,3453.3,2.89571]
[1719921846698,0.50142185,3453.5,3453.3,2.89571]
[1719921846934,0.50142185,3453.7,3453.3,2.89571]
[1719921847112,0.50142185,3453.6,3453.3,2.89571]
[1719921847310,0.50142185,3453.7,3453.3,2.89571]
[1719921847511,0.50142185,3453.6,3453.3,2.89571]
[1719921849251,1.10286088,3453.7,3453.3,2.89571]
[1719921849432,0.50143413,3453.5,3453.3,2.89571]
[1719921849631,0.50143413,3453.4,3453.3,2.89571]
[1719921852444,3.2297,3453.8,3453.3,2.89571]
[1719921852630,0.50143654,3453.4,3453.3,2.89571]
[1719921853017,0.50143655,3453.4,3453.3,2.89571]
[1719921855024,0.50143655,3453.4,3453.1,2.89589]
[1719921855225,0.50143655,3453.3,3453.2,2.89584]
[1719921855422,1.26464425,3453.6,3453.2,2.89584]
[1719921855758,0.50144596,3453.5,3453.2,2.89584]
[1719921856063,0.50144596,3453.4,3453.2,2.89584]
[1719921856348,0.50144596,3453.3,3453.2,2.89584]
[1719921858649,0.95598133,3453.3,3452.7,2.4748]
[1719921858835,1.77998133,3453.3,3452.8,2.89619]
[1719921859037,1.27853537,3453.3,3452.8,2.89619]
[1719921859249,0.824,3453.1,3452.8,2.89619]
[1719921859560,0.50148758,3453.0,3452.8,2.89619]
[1719921860762,0.50148758,3453.0,3452.5,2.2577]
[1719921861052,0.824,3452.9,3452.1,2.89676]
[1719921861263,0.50148758,3452.8,3452.2,2.8967]
[1719921862259,0.50153008,3452.7,3452.2,2.8967]
[1719921862614,4.27015,3452.9,3452.2,2.8967]
[1719921862816,2.96793015,3452.8,3452.2,2.89662]
[1719921863052,0.50153015,3452.7,3452.2,2.89662]
[1719921863250,4.27015,3452.9,3452.3,2.89656]
[1719921863553,0.50152744,3452.8,3452.3,2.89656]
[1719921863756,0.50152744,3452.7,3452.3,2.89656]
[1719921863938,4.27015,3452.9,3452.3,2.89656]
[1719921864145,0.50152645,3452.8,3452.3,2.89656]
[1719921864340,0.50152645,3452.7,3452.3,2.89656]
[1719921864592,0.50152645,3452.8,3452.3,2.89656]
[1719921864861,0.50152423,3452.7,3452.3,2.89656]
[1719921865024,0.55,3452.9,3452.4,2.89652]
[1719921865225,0.50152029,3452.8,3452.4,2.89652]
[1719921865436,0.55,3452.9,3452.2,2.89662]
[1719921865724,0.824,3452.6,3452.2,2.89662]
[1719921865930,0.50156326,3452.5,3452.2,2.89662]
[1719921866137,0.824,3452.6,3452.2,2.89662]
[1719921866731,2.4889,3452.8,3452.2,2.89662]
[1719921866732,0.50156944,3452.5,3452.2,2.89662]
[1719921866926,3.3129,3452.8,3452.3,2.89661]
[1719921867168,0.50156461,3452.7,3452.3,2.89661]
[1719921867333,0.50156461,3452.6,3452.3,2.89661]
[1719921867644,4.278406,3452.8,3452.3,2.89661]
[1719921867845,0.50156456,3452.7,3452.3,2.89661]
[1719921868033,0.50156456,3452.6,3452.3,2.89661]
[1719921868233,0.50156456,3452.7,3452.3,2.89661]
[1719921868444,0.50156456,3452.6,3452.3,2.89661]
[1719921868677,4.278406,3452.8,3452.3,2.89661]
[1719921868976,0.50156467,3452.7,3452.3,2.89661]
[1719921869174,0.50156467,3452.6,3452.3,2.89661]
[1719921869477,4.278406,3452.8,3452.3,2.89661]
[1719921869649,0.50156499,3452.7,3452.3,2.89661]
[1719921869853,0.50156499,3452.6,3452.3,2.89661]
[1719921870039,4.278406,3452.8,3452.3,2.89661]
[1719921870373,0.5015638,3452.7,3452.3,2.89661]
[1719921870679,0.5015638,3452.6,3452.3,2.89661]
[1719921870852,0.5015638,3452.7,3452.3,2.89661]
[1719921871178,0.50156402,3452.6,3452.3,2.89661]
[1719921871372,4.278406,3452.8,3452.3,2.89661]
[1719921871689,1.27402244,3452.7,3452.3,2.89661]
[1719921871986,4.278406,3452.8,3452.3,2.89661]
[1719921872292,4.278406,3452.8,3452.3,5.19341]
[1719921872293,0.50156493,3452.7,3452.3,5.19341]
[1719921872470,1.789506,3452.8,3452.3,5.19341]
[1719921872653,0.50156495,3452.7,3452.3,5.19341]
[1719921872862,1.789506,3452.8,3452.3,5.19341]
[1719921873181,0.50156497,3452.7,3452.3,5.19341]
[1719921873351,1.789506,3452.8,3452.3,5.19341]
[1719921873539,0.50156478,3452.7,3452.3,5.19341]
[1719921873747,1.789506,3452.8,3452.3,5.19341]
[1719921873748,0.50156692,3452.6,3452.3,5.19341]
[1719921873954,1.789506,3452.8,3452.3,5.19341]
[1719921874277,0.50156924,3452.7,3452.3,5.19341]
[1719921874598,0.50156924,3452.6,3452.3,5.19341]
[1719921874870,0.824,3452.8,3452.3,5.19341]
[1719921875280,0.50156898,3452.7,3452.3,5.19341]
[1719921875505,0.50156898,3452.6,3452.3,5.19341]
[1719921875649,0.50156898,3452.7,3452.3,5.19341]
[1719921876984,0.50156898,3452.7,3452.3,2.89661]
[1719921878443,0.50156855,3452.6,3452.3,2.89661]
[1719921878655,0.824,3452.8,3452.3,2.89661]
[1719921878863,0.50156985,3452.7,3452.3,2.89661]
[1719921879092,0.50156985,3452.6,3452.3,2.89661]
[1719921879280,0.50156985,3452.7,3452.3,2.89661]
[1719921881551,0.824,3452.8,3452.3,2.89661]
[1719921881744,0.50157102,3452.6,3452.3,2.89661]
[1719921881970,4.106756,3452.8,3452.3,2.89661]
[1719921882167,0.50157001,3452.7,3452.3,2.89661]
[1719921882388,0.50157001,3452.6,3452.3,2.89661]
[1719921882554,0.50157001,3452.7,3452.3,2.89661]
[1719921882757,0.50157122,3452.6,3452.3,2.89661]
[1719921883079,4.106756,3452.8,3452.3,2.89661]
[1719921883283,1.2568643,3452.7,3452.3,2.89661]
[1719921883479,0.5015717,3452.6,3452.3,2.89661]
[1719921884975,0.7552926,3452.7,3452.3,2.89661]
[1719921884976,0.50157202,3452.5,3452.3,2.89661]
[1719921885181,0.7552926,3452.7,3452.3,2.89661]
[1719921885379,0.50157209,3452.6,3452.1,5.7935]
[1719921885558,0.50157209,3452.5,3452.2,2.89669]
[1719921885750,1.32557209,3452.6,3452.2,2.89669]
[1719921885968,0.50157239,3452.5,3452.2,2.89669]
[1719921886168,0.824,3452.6,3452.2,2.89669]
[1719921886390,0.5015725,3452.5,3452.2,2.89669]
[1719921886698,0.824,3452.6,3452.2,2.89669]
[1719921886855,0.50157075,3452.5,3452.2,2.89669]
[1719921887059,0.824,3452.6,3452.2,2.89669]
[1719921887258,0.50157087,3452.5,3452.2,2.89669]
[1719921887464,0.50157087,3452.4,3452.2,2.89669]
[1719921887806,0.824,3452.6,3452.2,2.89669]
[1719921887960,0.50157064,3452.5,3452.2,2.89669]
[1719921888162,0.50157152,3452.4,3452.2,2.89669]
[1719921888408,0.50157159,3452.3,3452.2,2.89669]
[1719921890914,0.824,3452.6,3452.3,2.89661]
[1719921891075,0.50156608,3452.5,3452.3,2.89661]
[1719921891267,0.50156608,3452.4,3452.3,2.89661]
[1719921891463,0.824,3452.6,3452.3,2.89661]
[1719921891676,0.5015687,3452.5,3452.3,2.89661]
[1719921891885,0.824,3452.6,3452.3,2.89661]
[1719921892215,0.50156767,3452.5,3452.3,2.89661]
[1719921892366,0.50156767,3452.4,3452.3,2.89661]
[1719921894687,0.50156749,3452.4,3452.3,2.89661]
[1719921895323,0.50156749,3452.4,3452.3,8.632253]
[1719921895504,0.55,3453.0,3452.6,2.8963]
[1719921895674,0.824,3453.2,3452.6,2.8963]
[1719921895675,0.50153172,3452.9,3452.6,2.8963]
[1719921895870,0.50153172,3452.9,3452.7,2.89628]
[1719921895871,0.50153172,3452.8,3452.7,2.89628]
[1719921897005,0.50153172,3452.8,3452.7,5.79256]
[1719921897281,3.2141,3453.4,3452.9,2.89609]
[1719921897506,1.11246791,3453.3,3452.9,2.89609]
[1719921897676,0.50150491,3453.2,3452.9,2.89609]
[1719921897877,0.824,3453.2,3452.9,2.89609]
[1719921898081,1.05150762,3453.1,3452.9,2.89609]
[1719921898277,0.50150762,3453.0,3452.9,2.89609]
[1719921899422,0.50150762,3453.3,3453.1,2.89586]
[1719921899625,0.50150762,3453.3,3452.7,0.05791835]
[1719921899626,2.4747,3453.7,3453.4,2.89564]
[1719921899919,0.50145709,3453.6,3453.4,2.89564]
[1719921900426,0.50145709,3453.5,3453.4,2.89564]
[1719921900780,3.2987,3453.7,3453.4,2.89564]
[1719921900985,1.05144315,3453.6,3453.4,2.89564]
[1719921901225,0.50144315,3453.5,3453.4,2.89564]
[1719921902687,0.50144315,3453.5,3453.4,5.79133]
[1719921903310,2.2534,3453.9,3453.7,2.89538]
[1719921903543,3.0774,3453.9,3453.7,2.89538]
[1719921903842,0.50141515,3453.8,3453.7,2.89538]
[1719921904005,3.38514,3453.9,3453.7,2.89538]
[1719921904210,0.50141707,3453.8,3453.7,2.89538]
[1719921906737,1.13174,3453.9,3453.8,2.89536]
[1719921906900,2.18315391,3453.9,3453.8,2.89536]
[1719921908405,1.87541391,3453.9,3453.8,2.89536]
[1719921908931,1.05141391,3453.9,3453.8,2.89536]
[1719921909341,0.50141391,3453.9,3453.8,2.89536]
[1719921909904,0.50141391,3453.9,3453.7,2.89538]
[1719921909905,2.3255,3454.2,3453.9,2.89522]
[1719921910206,1.05138681,3454.1,3453.9,2.89522]
[1719921910406,0.50138681,3454.0,3453.9,2.89522]
[1719921910599,1.05138681,3454.0,3453.9,2.89522]
[1719921911754,1.05138681,3454.0,3453.7,2.89538]
[1719921911960,0.824,3453.8,3453.7,2.89538]
[1719921912259,0.50138681,3453.8,3453.7,2.89538]
[1719921912957,1.374,3454.0,3452.8,2.89613]
[1719921912958,0.50138681,3453.9,3452.8,2.89613]
[1719921913160,3.7741,3453.8,3453.4,2.89563]
[1719921913446,0.50141218,3453.7,3453.4,2.89563]
[1719921913744,0.55,3453.6,3453.4,2.89563]
[1719921914146,0.55,3453.7,3453.4,2.89563]
[1719921919349,0.50142423,3453.6,3453.4,2.89563]
[1719921919526,0.55,3453.7,3453.4,2.89563]
[1719921919733,0.50142411,3453.6,3453.4,2.89563]
[1719921920031,0.55,3453.7,3453.4,2.89563]
[1719921920216,0.50142065,3453.6,3453.5,2.89561]
[1719921920414,2.89495,3454.3,3453.5,2.89561]
[1719921920415,0.824,3454.1,3453.5,2.89561]
[1719921920750,1.05139865,3454.0,3453.7,2.89539]
[1719921920916,0.50139865,3453.9,3453.7,2.89539]
[1719921921247,0.50139865,3453.8,3453.7,2.89539]
[1719921922028,0.50139865,3453.8,3453.5,2.89554]
[1719921922355,0.50139865,3453.7,3453.6,2.89552]
[1719921922554,3.1551,3453.9,3453.6,2.89552]
[1719921922555,0.50139865,3453.8,3453.6,2.89552]
[1719921922967,0.50141676,3453.7,3453.6,2.89552]
[1719921923145,1.05141676,3453.7,3453.5,2.89554]
[1719921923467,0.50141676,3453.6,3453.5,2.89554]
[1719921926167,0.55,3453.7,3453.5,2.89554]
[1719921926372,3.1551,3453.9,3453.5,2.89554]
[1719921926373,0.50141914,3453.6,3453.5,2.89554]
[1719921927190,2.75801914,3453.6,3453.3,2.89577]
[1719921927415,0.50141914,3453.5,3453.3,2.89577]
[1719921928706,0.50141914,3453.5,3453.1,2.89587]
[1719921929490,0.50143516,3453.4,3453.1,2.89587]
[1719921929685,0.50143516,3453.3,3453.1,5.79176]
[1719921929888,2.2566,3453.6,3453.1,5.79176]
[1719921930103,0.5014369,3453.5,3453.1,2.89587]
[1719921930300,0.5014369,3453.4,3453.1,2.89587]
[1719921930499,0.5014369,3453.3,3453.1,2.89587]
[1719921930715,2.2566,3453.6,3453.1,2.89587]
[1719921930716,0.5014369,3453.5,3453.1,2.89587]
[1719921930910,0.5014369,3453.4,3453.1,2.89587]
[1719921931208,0.5014369,3453.3,3452.9,2.89608]
[1719921931416,1.3254369,3453.5,3452.9,2.89608]
[1719921931624,1.0514369,3453.4,3452.9,2.89608]
[1719921931790,0.5014369,3453.3,3452.9,2.89608]
[1719921931981,0.5014369,3453.3,3453.0,0.0514327]
[1719921932490,0.55,3453.4,3453.0,0.0514327]
[1719921932677,0.50148107,3453.3,3453.0,0.0514327]
[1719921932879,0.50148113,3453.2,3453.0,0.0514327]
[1719921933078,0.50148113,3453.1,3453.0,0.0514327]
[1719921933329,0.50148113,3453.2,3453.0,0.0514327]
[1719921933482,0.50148113,3453.1,3453.0,0.0514327]
[1719921934016,0.50148113,3453.2,3453.0,0.0514327]
[1719921934178,0.50148113,3453.1,3453.0,0.0514327]
[1719921934892,0.50148113,3453.2,3453.0,0.0514327]
[1719921935092,0.50148113,3453.1,3453.0,0.0514327]
[1719921935316,0.50148113,3453.2,3453.0,0.0514327]
[1719921935524,0.50148113,3453.1,3453.0,0.0514327]
[1719921935890,0.50148113,3453.2,3453.0,0.0514327]
[1719921936925,0.50148113,3453.2,3452.8,2.89619]
[1719921937102,0.50148113,3453.2,3452.9,0.05143433]
[1719921937298,0.50148113,3453.2,3452.7,2.89628]
[1719921937520,0.50148113,3453.2,3452.8,0.05143595]
[1719921937841,0.55,3453.1,3452.7,2.89628]
[1719921938041,0.50148113,3453.0,3452.9,0.05143433]
[1719921938238,0.50148113,3453.0,3452.7,2.89628]
[1719921938239,0.50148113,3453.0,3452.8,0.05143595]
[1719921938419,0.50148113,3453.0,3452.9,0.05143433]
[1719921938616,1.05148113,3453.0,3452.9,0.05143433]
[1719921938842,1.05148113,3453.0,3452.5,5.7928]
[1719921939046,1.05148113,3453.0,3452.9,0.05143433]
[1719921939221,1.05150313,3453.0,3452.6,2.89636]
[1719921939547,0.55,3453.0,3452.6,2.89636]
[1719921939748,0.55,3453.0,3452.7,0.05151458]
[1719921939749,2.4086,3452.8,3452.7,0.05151458]
[1719921939963,1.05151299,3452.9,3452.7,0.05151458]
[1719921940248,1.05151299,3452.9,3452.4,2.89647]
[1719921940249,0.50151299,3452.8,3452.4,2.89647]
[1719921942154,0.50151299,3452.8,3452.5,2.89644]
[1719921942506,0.50153981,3452.7,3452.5,2.89644]
[1719921942712,0.55,3452.9,3452.5,2.89644]
[1719921942950,0.50153979,3452.8,3452.5,2.89644]
[1719921943167,0.50153979,3452.7,3452.5,2.89644]
[1719921943317,0.50153979,3452.8,3452.5,2.89644]
[1719921943808,0.50153979,3452.8,3452.4,2.89652]
[1719921945212,1.32553979,3452.8,3452.4,2.89652]
[1719921945403,0.50153979,3452.7,3452.4,2.89652]
[1719921945603,0.824,3452.8,3452.4,2.89652]
[1719921945807,3.2094,3452.6,3452.2,2.89664]
[1719921946244,0.50158813,3452.5,3452.2,2.89664]
[1719921946617,3.2094,3452.6,3452.2,2.89664]
[1719921947219,6.10581,3452.6,3452.0,2.89686]
[1719921947560,1.0515983,3452.5,3452.0,2.89686]
[1719921947722,0.5015983,3452.4,3452.0,2.89686]
[1719921947910,0.55,3452.3,3452.0,2.89686]
[1719921948336,0.55,3452.5,3452.0,2.89686]
[1719921954549,0.824,3452.4,3452.1,0.05255902]
[1719921954849,0.55,3452.3,3452.1,0.05255902]